fUST/lending_fUST_20250221
["ID","MTS","AMOUNT","RATE_DAILY","PERIOD"]
[353863622,1740100245409,-1015.56,0.00014109,2]
[353863623,1740100245418,-3063.86,0.00014109,2]
[353863624,1740100245427,-500.0,0.00014109,2]
[353863625,1740100245436,-500.0,0.00014109,2]
[353863626,1740100245446,-677.15,0.00014109,2]
[353863627,1740100245455,-858.26,0.00014109,2]
[353863628,1740100245464,-540.01,0.00014109,2]
[353863629,1740100245473,-1641.8,0.00014109,2]
[353863630,1740100245483,-1651.32,0.00014109,2]
[353863631,1740100245492,-1900.23,0.00014109,2]
[353863632,1740100245501,-520.31,0.00014109,2]
[353863633,1740100245512,-2001.77,0.00014109,2]
[353863634,1740100245522,-500.0,0.00014109,2]
[353863636,1740100245535,-14732.63,0.00014109,2]
[353863638,1740100245544,-500.0,0.00014109,2]
[353863639,1740100245554,-500.0,0.00014109,2]
[353863641,1740100245563,-598.18,0.00014109,2]
[353863643,1740100245572,-1936.09,0.00014109,2]
[353863646,1740100245582,-4649.86,0.00014109,2]
[353863648,1740100245592,-1481.54,0.00014109,2]
[353863650,1740100245602,-500.0,0.00014109,2]
[353863653,1740100245611,-500.0,0.00014109,2]
[353863654,1740100245620,-727.91,0.00014109,2]
[353863656,1740100245630,-500.0,0.00014109,2]
[353863658,1740100245639,-500.0,0.00014109,2]
[353863660,1740100245648,-500.0,0.00014109,2]
[353863662,1740100245657,-500.0,0.00014109,2]
[353863664,1740100245666,-500.0,0.00014109,2]
[353863666,1740100245675,-1629.56,0.00014109,2]
[353863668,1740100245684,-5565.48,0.00014109,2]
[353863670,1740100245694,-500.0,0.00014109,2]
[353863672,1740100245703,-1472.7,0.00014109,2]
[353863673,1740100245712,-10366.79,0.00014109,2]
[353863674,1740100245723,-2227.93,0.00014109,2]
[353863675,1740100245744,-500.0,0.00014109,2]
[353863676,1740100245757,-2771.6,0.00014109,2]
[353863677,1740100245766,-1070.41,0.00014109,2]
[353863680,1740100245776,-898.45,0.00014109,2]
[353863683,1740100245786,-818.09,0.00014109,2]
[353863685,1740100245795,-600.0,0.00014164,2]
[353863687,1740100245804,-500.0,0.00014173,2]
[353863689,1740100245814,-500.0,0.00014173,2]
[353863691,1740100245824,-500.0,0.00014173,2]
[353863693,1740100245833,-500.0,0.00014173,2]
[353863695,1740100245842,-500.0,0.00014173,2]
[353863697,1740100245851,-156.63025775,0.00014173,2]
[353863699,1740100245860,-500.0,0.00014173,2]
[353863701,1740100245869,-500.0,0.00014173,2]
[353863703,1740100245879,-500.0,0.00014173,2]
[353863705,1740100245888,-500.0,0.00014173,2]
[353863707,1740100245898,-500.0,0.00014173,2]
[353863709,1740100245907,-416.79402787,0.00014173,2]
[353863712,1740100245916,-500.0,0.00014173,2]
[353863714,1740100245926,-500.0,0.00014173,2]
[353863717,1740100245935,-504.86614696,0.00014173,2]
[353863720,1740100245945,-500.0,0.00014173,2]
[353863722,1740100245954,-162.97630381,0.00014173,2]
[353863724,1740100245964,-500.0,0.00014173,2]
[353863726,1740100245973,-500.0,0.00014173,2]
[353863728,1740100245983,-500.67238242,0.00014173,2]
[353863730,1740100245992,-500.0,0.00014173,2]
[353863732,1740100246002,-500.0,0.00014173,2]
[353863734,1740100246012,-500.0,0.00014173,2]
[353863736,1740100246021,-250.76985661,0.00014173,2]
[353863738,1740100246031,-500.0,0.00014173,2]
[353863740,1740100246041,-500.0,0.00014173,2]
[353863742,1740100246051,-500.0,0.00014173,2]
[353863744,1740100246060,-500.0,0.00014173,2]
[353863746,1740100246069,-500.0,0.00014173,2]
[353863748,1740100246079,-170.82861777,0.00014173,2]
[353863750,1740100246089,-500.0,0.00014191,2]
[353863752,1740100246098,-500.0,0.00014191,2]
[353863754,1740100246107,-500.0,0.00014191,2]
[353863756,1740100246117,-500.0,0.00014191,2]
[353863758,1740100246127,-500.0,0.00014191,2]
[353863760,1740100246137,-500.0,0.00014191,2]
[353863761,1740100246147,-500.0,0.00014191,2]
[353863762,1740100246157,-500.0,0.00014191,2]
[353863763,1740100246166,-500.0,0.00014191,2]
[353863764,1740100246175,-500.0,0.00014191,2]
[353863765,1740100246184,-710.3,0.00014191,2]
[353863766,1740100246194,-500.0,0.00014191,2]
[353863767,1740100246203,-541.16,0.00014191,2]
[353863768,1740100246215,-921.47,0.00014191,2]
[353863769,1740100246225,-500.0,0.00014191,2]
[353863770,1740100246234,-500.0,0.00014191,2]
[353863771,1740100246244,-836.09,0.00014191,2]
[353863772,1740100246253,-500.0,0.00014191,2]
[353863773,1740100246262,-500.0,0.00014191,2]
[353863774,1740100246272,-500.0,0.00014191,2]
[353863775,1740100246281,-500.0,0.00014191,2]
[353863776,1740100246290,-568.78,0.00014191,2]
[353863777,1740100246299,-500.0,0.00014191,2]
[353863778,1740100246309,-881.54,0.00014191,2]
[353863779,1740100246318,-500.0,0.00014191,2]
[353863780,1740100246328,-500.0,0.00014191,2]
[353863781,1740100246337,-500.0,0.00014191,2]
[353863782,1740100246346,-500.0,0.00014191,2]
[353863783,1740100246355,-649.12,0.00014191,2]
[353863784,1740100246364,-220.53,0.00014191,2]
[353863785,1740100246374,-581.18,0.00014191,2]
[353863786,1740100246383,-500.0,0.00014191,2]
[353863787,1740100246392,-500.0,0.00014191,2]
[353863788,1740100246402,-500.0,0.00014191,2]
[353863789,1740100246411,-500.0,0.00014191,2]
[353863790,1740100246421,-500.0,0.00014191,2]
[353863791,1740100246430,-500.0,0.00014191,2]
[353863792,1740100246439,-576.13,0.00014191,2]
[353863793,1740100246449,-940.45,0.00014191,2]
[353863794,1740100246458,-27440.76,0.00014191,2]
[353863795,1740100246467,-500.0,0.00014191,2]
[353863796,1740100246476,-500.0,0.00014191,2]
[353863797,1740100246486,-948.71,0.00014191,2]
[353863798,1740100246495,-1428.11,0.00014191,2]
[353863799,1740100246504,-1895.63,0.00014191,2]
[353863800,1740100246514,-500.0,0.00014191,2]
[353863801,1740100246523,-1075.67,0.00014191,2]
[353863802,1740100246533,-1153.78,0.00014191,2]
[353863803,1740100246542,-2542.69,0.00014191,2]
[353863804,1740100246552,-5017.26,0.00014191,2]
[353863805,1740100246561,-699.68,0.00014191,2]
[353863806,1740100246570,-500.0,0.00014191,2]
[353863807,1740100246579,-500.0,0.00014191,2]
[353863808,1740100246589,-500.0,0.00014191,2]
[353863809,1740100246598,-2724.78,0.00014191,2]
[353863810,1740100246608,-500.0,0.00014191,2]
[353863811,1740100246617,-500.0,0.00014191,2]
[353863812,1740100246628,-1514.33,0.00014191,2]
[353863813,1740100246638,-500.0,0.00014191,2]
[353863814,1740100246647,-500.0,0.00014191,2]
[353863815,1740100246657,-500.0,0.00014191,2]
[353863816,1740100246667,-1015.56,0.00014191,2]
[353863817,1740100246676,-3063.86,0.00014191,2]
[353863818,1740100246685,-500.0,0.00014191,2]
[353863819,1740100246695,-500.0,0.00014191,2]
[353863820,1740100246705,-677.15,0.00014191,2]
[353863821,1740100246714,-858.26,0.00014191,2]
[353863822,1740100246723,-540.01,0.00014191,2]
[353863823,1740100246735,-1641.8,0.00014191,2]
[353863824,1740100246745,-1651.32,0.00014191,2]
[353863825,1740100246755,-520.31,0.00014191,2]
[353863826,1740100246769,-1900.23,0.00014191,2]
[353863827,1740100246778,-2001.77,0.00014191,2]
[353863828,1740100246787,-500.0,0.00014191,2]
[353863829,1740100246796,-14732.63,0.00014191,2]
[353863830,1740100246806,-500.0,0.00014191,2]
[353863831,1740100246817,-500.0,0.00014191,2]
[353863832,1740100246827,-598.18,0.00014191,2]
[353863833,1740100246836,-1936.09,0.00014191,2]
[353863834,1740100246846,-4649.86,0.00014191,2]
[353863835,1740100246855,-1481.54,0.00014191,2]
[353863836,1740100246865,-500.0,0.00014191,2]
[353863837,1740100246874,-500.0,0.00014191,2]
[353863838,1740100246883,-727.91,0.00014191,2]
[353863839,1740100246985,-500.0,0.00014191,2]
[353863840,1740100246995,-500.0,0.00014191,2]
[353863841,1740100247005,-500.0,0.00014191,2]
[353863842,1740100247015,-500.0,0.00014191,2]
[353863843,1740100247024,-500.0,0.00014191,2]
[353863844,1740100247034,-1629.56,0.00014191,2]
[353863845,1740100247043,-5565.48,0.00014191,2]
[353863846,1740100247053,-500.0,0.00014191,2]
[353863847,1740100247063,-1472.7,0.00014191,2]
[353863848,1740100247072,-10366.79,0.00014191,2]
[353863849,1740100247082,-2227.93,0.00014191,2]
[353863850,1740100247091,-500.0,0.00014191,2]
[353863851,1740100247100,-2771.6,0.00014191,2]
[353863852,1740100247110,-1070.41,0.00014191,2]
[353863853,1740100247119,-898.45,0.00014191,2]
[353863854,1740100247129,-818.09,0.00014191,2]
[353863855,1740100247139,-160.0,0.00014207,3]
[353863856,1740100247148,-7438.69753278,0.00014228,2]
[353863857,1740100247158,-396.0,0.00014247,2]
[353863858,1740100247167,-500.0,0.00014273,2]
[353863859,1740100247176,-500.0,0.00014273,2]
[353863860,1740100247185,-501.70011876,0.00014273,2]
[353863861,1740100247194,-500.0,0.00014273,2]
[353863862,1740100247203,-204.22984902,0.00014273,2]
[353863863,1740100247213,-500.0,0.00014273,2]
[353863864,1740100247222,-500.0,0.00014273,2]
[353863865,1740100247232,-419.5524476,0.00014273,2]
[353863866,1740100247242,-500.0,0.00014273,2]
[353863867,1740100247251,-710.3,0.00014273,2]
[353863868,1740100247261,-500.0,0.00014273,2]
[353863869,1740100247270,-541.16,0.00014273,2]
[353863870,1740100247279,-921.47,0.00014273,2]
[353863871,1740100247289,-500.0,0.00014273,2]
[353863872,1740100247298,-500.0,0.00014273,2]
[353863873,1740100247308,-836.09,0.00014273,2]
[353863874,1740100247317,-500.0,0.00014273,2]
[353863875,1740100247328,-500.0,0.00014273,2]
[353863876,1740100247337,-370.32730835,0.00014273,2]
[353863877,1740100247347,-500.0,0.00014273,2]
[353863878,1740100247356,-568.78,0.00014273,2]
[353863879,1740100247365,-500.0,0.00014273,2]
[353863880,1740100247375,-881.54,0.00014273,2]
[353863881,1740100247384,-500.0,0.00014273,2]
[353863882,1740100247394,-254.68426012,0.00014273,2]
[353863883,1740100247403,-500.0,0.00014273,2]
[353863884,1740100247413,-500.0,0.00014273,2]
[353863885,1740100247422,-649.12,0.00014273,2]
[353863886,1740100247432,-581.18,0.00014273,2]
[353863887,1740100247442,-500.0,0.00014273,2]
[353863888,1740100247451,-500.0,0.00014273,2]
[353863889,1740100247461,-500.0,0.00014273,2]
[353863890,1740100247470,-500.0,0.00014273,2]
[353863891,1740100247480,-500.0,0.00014273,2]
[353863892,1740100247490,-500.0,0.00014273,2]
[353863893,1740100247500,-576.13,0.00014273,2]
[353863894,1740100247509,-940.45,0.00014273,2]
[353863895,1740100247519,-27440.76,0.00014273,2]
[353863896,1740100247529,-500.0,0.00014273,2]
[353863897,1740100247538,-500.0,0.00014273,2]
[353863898,1740100247548,-948.71,0.00014273,2]
[353863899,1740100247557,-1428.11,0.00014273,2]
[353863900,1740100247567,-1895.63,0.00014273,2]
[353863901,1740100247576,-500.0,0.00014273,2]
[353863902,1740100247586,-1075.67,0.00014273,2]
[353863903,1740100247597,-1153.78,0.00014273,2]
[353863904,1740100247606,-2542.69,0.00014273,2]
[353863905,1740100247616,-5017.26,0.00014273,2]
[353863906,1740100247627,-699.68,0.00014273,2]
[353863907,1740100247637,-500.0,0.00014273,2]
[353863908,1740100247648,-500.0,0.00014273,2]
[353863909,1740100247658,-500.0,0.00014273,2]
[353863910,1740100247668,-2724.78,0.00014273,2]
[353863911,1740100247677,-500.0,0.00014273,2]
[353863912,1740100247687,-500.0,0.00014273,2]
[353863913,1740100247697,-1514.33,0.00014273,2]
[353863914,1740100247707,-500.0,0.00014273,2]
[353863915,1740100247716,-500.0,0.00014273,2]
[353863916,1740100247727,-500.0,0.00014273,2]
[353863917,1740100247742,-1015.56,0.00014273,2]
[353863918,1740100247752,-3063.86,0.00014273,2]
[353863919,1740100247762,-500.0,0.00014273,2]
[353863920,1740100247771,-500.0,0.00014273,2]
[353863921,1740100247782,-677.15,0.00014273,2]
[353863922,1740100247792,-858.26,0.00014273,2]
[353863923,1740100247802,-540.01,0.00014273,2]
[353863924,1740100247812,-1641.8,0.00014273,2]
[353863925,1740100247823,-1651.32,0.00014273,2]
[353863926,1740100247832,-520.31,0.00014273,2]
[353863927,1740100247842,-1900.23,0.00014273,2]
[353863928,1740100247851,-2001.77,0.00014273,2]
[353863929,1740100247861,-500.0,0.00014273,2]
[353863930,1740100247871,-14732.63,0.00014273,2]
[353863931,1740100247880,-500.0,0.00014273,2]
[353863932,1740100247890,-500.0,0.00014273,2]
[353863933,1740100247900,-598.18,0.00014273,2]
[353863934,1740100247909,-1936.09,0.00014273,2]
[353863935,1740100247919,-4649.86,0.00014273,2]
[353863936,1740100247928,-1481.54,0.00014273,2]
[353863937,1740100247938,-500.0,0.00014273,2]
[353863938,1740100247949,-500.0,0.00014273,2]
[353863939,1740100247961,-727.91,0.00014273,2]
[353863940,1740100247971,-500.0,0.00014273,2]
[353863941,1740100247981,-500.0,0.00014273,2]
[353863942,1740100247991,-500.0,0.00014273,2]
[353863943,1740100248001,-500.0,0.00014273,2]
[353863944,1740100248010,-500.0,0.00014273,2]
[353863945,1740100248019,-1629.56,0.00014273,2]
[353863946,1740100248029,-5565.48,0.00014273,2]
[353863947,1740100248038,-500.0,0.00014273,2]
[353863948,1740100248048,-10366.79,0.00014273,2]
[353863949,1740100248058,-1472.7,0.00014273,2]
[353863950,1740100248068,-2227.93,0.00014273,2]
[353863951,1740100248077,-500.0,0.00014273,2]
[353863952,1740100248087,-2771.6,0.00014273,2]
[353863953,1740100248096,-1070.41,0.00014273,2]
[353863954,1740100248105,-898.45,0.00014273,2]
[353863955,1740100248125,-818.09,0.00014273,2]
[353863956,1740100248139,-1000.0,0.000143,2]
[353863957,1740100248150,-528.422,0.00014327,2]
[353863958,1740100248160,-2246.54732415,0.00014338,2]
[353863959,1740100248170,-500.0,0.00014356,2]
[353863960,1740100248180,-500.0,0.00014356,2]
[353863961,1740100248190,-500.0,0.00014356,2]
[353863962,1740100248200,-500.0,0.00014356,2]
[353863963,1740100248210,-263.35877134,0.00014356,2]
[353863964,1740100248219,-500.0,0.00014356,2]
[353863965,1740100248229,-710.3,0.00014356,2]
[353863966,1740100248239,-500.0,0.00014356,2]
[353863967,1740100248249,-541.16,0.00014356,2]
[353863968,1740100248259,-921.47,0.00014356,2]
[353863969,1740100248268,-500.0,0.00014356,2]
[353863970,1740100248278,-500.0,0.00014356,2]
[353863971,1740100248287,-836.09,0.00014356,2]
[353863972,1740100248297,-500.0,0.00014356,2]
[353863973,1740100248307,-500.0,0.00014356,2]
[353863974,1740100248317,-500.0,0.00014356,2]
[353863975,1740100248327,-568.78,0.00014356,2]
[353863976,1740100248337,-500.0,0.00014356,2]
[353863977,1740100248347,-881.54,0.00014356,2]
[353863978,1740100248357,-500.0,0.00014356,2]
[353863979,1740100248367,-500.0,0.00014356,2]
[353863980,1740100248377,-500.0,0.00014356,2]
[353863981,1740100248387,-649.12,0.00014356,2]
[353863982,1740100248397,-581.18,0.00014356,2]
[353863983,1740100248406,-500.0,0.00014356,2]
[353863984,1740100248416,-500.0,0.00014356,2]
[353863985,1740100248426,-500.0,0.00014356,2]
[353863986,1740100248435,-500.0,0.00014356,2]
[353863987,1740100248445,-500.0,0.00014356,2]
[353863988,1740100248455,-500.0,0.00014356,2]
[353863989,1740100248465,-576.13,0.00014356,2]
[353863990,1740100248475,-940.45,0.00014356,2]
[353863991,1740100248484,-27440.76,0.00014356,2]
[353863992,1740100248494,-500.0,0.00014356,2]
[353863993,1740100248504,-500.0,0.00014356,2]
[353863994,1740100248513,-948.71,0.00014356,2]
[353863995,1740100248523,-1428.11,0.00014356,2]
[353863996,1740100248532,-1895.63,0.00014356,2]
[353863997,1740100248542,-500.0,0.00014356,2]
[353863998,1740100248551,-1075.67,0.00014356,2]
[353863999,1740100248561,-1153.78,0.00014356,2]
[353864000,1740100248570,-2542.69,0.00014356,2]
[353864001,1740100248580,-5017.26,0.00014356,2]
[353864002,1740100248590,-699.68,0.00014356,2]
[353864003,1740100248600,-500.0,0.00014356,2]
[353864004,1740100248609,-500.0,0.00014356,2]
[353864005,1740100248619,-500.0,0.00014356,2]
[353864006,1740100248630,-2724.78,0.00014356,2]
[353864007,1740100248639,-500.0,0.00014356,2]
[353864008,1740100248650,-500.0,0.00014356,2]
[353864009,1740100248660,-1514.33,0.00014356,2]
[353864010,1740100248670,-500.0,0.00014356,2]
[353864011,1740100248680,-500.0,0.00014356,2]
[353864012,1740100248690,-500.0,0.00014356,2]
[353864013,1740100248699,-1015.56,0.00014356,2]
[353864014,1740100248709,-3063.86,0.00014356,2]
[353864015,1740100248719,-500.0,0.00014356,2]
[353864016,1740100248730,-500.0,0.00014356,2]
[353864017,1740100248742,-677.15,0.00014356,2]
[353864018,1740100248752,-858.26,0.00014356,2]
[353864019,1740100248762,-540.01,0.00014356,2]
[353864020,1740100248772,-1641.8,0.00014356,2]
[353864021,1740100248783,-1651.32,0.00014356,2]
[353864022,1740100248792,-520.31,0.00014356,2]
[353864023,1740100248802,-1900.23,0.00014356,2]
[353864024,1740100248812,-2001.77,0.00014356,2]
[353864025,1740100248822,-500.0,0.00014356,2]
[353864026,1740100248832,-14732.63,0.00014356,2]
[353864027,1740100248842,-500.0,0.00014356,2]
[353864028,1740100248852,-500.0,0.00014356,2]
[353864029,1740100248862,-598.18,0.00014356,2]
[353864030,1740100248872,-1936.09,0.00014356,2]
[353864031,1740100248883,-4649.86,0.00014356,2]
[353864032,1740100248893,-1481.54,0.00014356,2]
[353864033,1740100248903,-500.0,0.00014356,2]
[353864034,1740100248913,-500.0,0.00014356,2]
[353864035,1740100248923,-727.91,0.00014356,2]
[353864036,1740100248934,-500.0,0.00014356,2]
[353864037,1740100248944,-500.0,0.00014356,2]
[353864038,1740100248954,-500.0,0.00014356,2]
[353864039,1740100248968,-500.0,0.00014356,2]
[353864040,1740100248978,-500.0,0.00014356,2]
[353864041,1740100248988,-1629.56,0.00014356,2]
[353864042,1740100248999,-5565.48,0.00014356,2]
[353864043,1740100249010,-500.0,0.00014356,2]
[353864044,1740100249019,-10366.79,0.00014356,2]
[353864045,1740100249029,-1472.7,0.00014356,2]
[353864046,1740100249039,-2227.93,0.00014356,2]
[353864047,1740100249049,-500.0,0.00014356,2]
[353864048,1740100249058,-2771.6,0.00014356,2]
[353864049,1740100249069,-1070.41,0.00014356,2]
[353864050,1740100249080,-898.45,0.00014356,2]
[353864051,1740100249089,-818.09,0.00014356,2]
[353864052,1740100249099,-500.0,0.00014438,2]
[353864053,1740100249108,-500.0,0.00014438,2]
[353864054,1740100249118,-500.0,0.00014438,2]
[353864055,1740100249127,-500.0,0.00014438,2]
[353864056,1740100249137,-500.0,0.00014438,2]
[353864057,1740100249147,-710.3,0.00014438,2]
[353864058,1740100249156,-500.0,0.00014438,2]
[353864059,1740100249166,-541.16,0.00014438,2]
[353864060,1740100249176,-921.47,0.00014438,2]
[353864061,1740100249186,-500.0,0.00014438,2]
[353864062,1740100249196,-500.0,0.00014438,2]
[353864063,1740100249206,-836.09,0.00014438,2]
[353864064,1740100249216,-500.0,0.00014438,2]
[353864065,1740100249228,-500.0,0.00014438,2]
[353864066,1740100249238,-500.0,0.00014438,2]
[353864067,1740100249248,-568.78,0.00014438,2]
[353864068,1740100249390,-500.0,0.00014438,2]
[353864069,1740100249401,-881.54,0.00014438,2]
[353864070,1740100249411,-500.0,0.00014438,2]
[353864071,1740100249421,-500.0,0.00014438,2]
[353864072,1740100249431,-649.12,0.00014438,2]
[353864073,1740100249442,-581.18,0.00014438,2]
[353864074,1740100249452,-500.0,0.00014438,2]
[353864075,1740100249462,-500.0,0.00014438,2]
[353864076,1740100249472,-500.0,0.00014438,2]
[353864077,1740100249482,-500.0,0.00014438,2]
[353864078,1740100249492,-500.0,0.00014438,2]
[353864079,1740100249501,-500.0,0.00014438,2]
[353864080,1740100249511,-576.13,0.00014438,2]
[353864081,1740100249521,-940.45,0.00014438,2]
[353864082,1740100249530,-27440.76,0.00014438,2]
[353864083,1740100249539,-500.0,0.00014438,2]
[353864084,1740100249549,-500.0,0.00014438,2]
[353864085,1740100249559,-948.71,0.00014438,2]
[353864086,1740100249568,-1428.11,0.00014438,2]
[353864087,1740100249578,-1895.63,0.00014438,2]
[353864088,1740100249588,-500.0,0.00014438,2]
[353864089,1740100249598,-1075.67,0.00014438,2]
[353864090,1740100249607,-1153.78,0.00014438,2]
[353864091,1740100249617,-2542.69,0.00014438,2]
[353864092,1740100249627,-5017.26,0.00014438,2]
[353864093,1740100249636,-699.68,0.00014438,2]
[353864094,1740100249646,-500.0,0.00014438,2]
[353864095,1740100249657,-500.0,0.00014438,2]
[353864096,1740100249667,-500.0,0.00014438,2]
[353864097,1740100249676,-2724.78,0.00014438,2]
[353864098,1740100249685,-500.0,0.00014438,2]
[353864099,1740100249695,-500.0,0.00014438,2]
[353864100,1740100249704,-1514.33,0.00014438,2]
[353864101,1740100249714,-500.0,0.00014438,2]
[353864102,1740100249723,-500.0,0.00014438,2]
[353864103,1740100249736,-500.0,0.00014438,2]
[353864104,1740100249746,-1015.56,0.00014438,2]
[353864105,1740100249756,-3063.86,0.00014438,2]
[353864106,1740100249765,-500.0,0.00014438,2]
[353864107,1740100249775,-500.0,0.00014438,2]
[353864108,1740100249784,-677.15,0.00014438,2]
[353864109,1740100249794,-858.26,0.00014438,2]
[353864110,1740100249804,-540.01,0.00014438,2]
[353864111,1740100249816,-1641.8,0.00014438,2]
[353864112,1740100249826,-1651.32,0.00014438,2]
[353864113,1740100249836,-520.31,0.00014438,2]
[353864114,1740100249845,-1900.23,0.00014438,2]
[353864115,1740100249856,-2001.77,0.00014438,2]
[353864116,1740100249866,-500.0,0.00014438,2]
[353864117,1740100249875,-14732.63,0.00014438,2]
[353864118,1740100249885,-500.0,0.00014438,2]
[353864119,1740100249895,-500.0,0.00014438,2]
[353864120,1740100249904,-598.18,0.00014438,2]
[353864121,1740100249914,-1936.09,0.00014438,2]
[353864122,1740100249924,-4649.86,0.00014438,2]
[353864123,1740100249934,-1481.54,0.00014438,2]
[353864124,1740100249943,-500.0,0.00014438,2]
[353864125,1740100249952,-500.0,0.00014438,2]
[353864126,1740100249963,-727.91,0.00014438,2]
[353864127,1740100249972,-500.0,0.00014438,2]
[353864128,1740100249982,-500.0,0.00014438,2]
[353864129,1740100249991,-500.0,0.00014438,2]
[353864130,1740100250000,-500.0,0.00014438,2]
[353864131,1740100250011,-500.0,0.00014438,2]
[353864132,1740100250020,-1629.56,0.00014438,2]
[353864133,1740100250029,-5565.48,0.00014438,2]
[353864134,1740100250039,-500.0,0.00014438,2]
[353864135,1740100250048,-10366.79,0.00014438,2]
[353864136,1740100250058,-1472.7,0.00014438,2]
[353864137,1740100250068,-2227.93,0.00014438,2]
[353864138,1740100250078,-2771.6,0.00014438,2]
[353864139,1740100250088,-1070.41,0.00014438,2]
[353864140,1740100250098,-898.45,0.00014438,2]
[353864141,1740100250108,-160.0,0.00014491,4]
[353864142,1740100250117,-2902.79,0.000145,2]
[353864143,1740100250128,-151.0,0.000145,2]
[353864144,1740100250138,-500.0,0.0001452,2]
[353864145,1740100250148,-434.64279973,0.0001452,2]
[353864146,1740100250158,-500.0,0.0001452,2]
[353864147,1740100250168,-500.0,0.0001452,2]
[353864148,1740100250178,-500.0,0.0001452,2]
[353864149,1740100250187,-710.3,0.0001452,2]
[353864150,1740100250197,-210.98575484,0.0001452,2]
[353864151,1740100250207,-541.16,0.0001452,2]
[353864152,1740100250216,-921.47,0.0001452,2]
[353864153,1740100250226,-500.0,0.0001452,2]
[353864154,1740100250236,-500.0,0.0001452,2]
[353864155,1740100250246,-836.09,0.0001452,2]
[353864156,1740100250256,-500.0,0.0001452,2]
[353864157,1740100250265,-500.0,0.0001452,2]
[353864158,1740100250275,-500.0,0.0001452,2]
[353864159,1740100250293,-568.78,0.0001452,2]
[353864160,1740100250304,-500.0,0.0001452,2]
[353864161,1740100250314,-881.54,0.0001452,2]
[353864162,1740100250324,-500.0,0.0001452,2]
[353864163,1740100250333,-500.0,0.0001452,2]
[353864164,1740100250344,-649.12,0.0001452,2]
[353864165,1740100250354,-581.18,0.0001452,2]
[353864166,1740100250364,-500.0,0.0001452,2]
[353864167,1740100250375,-500.0,0.0001452,2]
[353864168,1740100250385,-500.0,0.0001452,2]
[353864169,1740100250395,-500.0,0.0001452,2]
[353864170,1740100250405,-500.0,0.0001452,2]
[353864171,1740100250416,-500.0,0.0001452,2]
[353864172,1740100250426,-576.13,0.0001452,2]
[353864173,1740100250436,-940.45,0.0001452,2]
[353864174,1740100250446,-27440.76,0.0001452,2]
[353864175,1740100250456,-596.11567574,0.0001452,2]
[353864176,1740100250466,-500.0,0.0001452,2]
[353864177,1740100250476,-948.71,0.0001452,2]
[353864178,1740100250486,-1428.11,0.0001452,2]
[353864179,1740100250496,-1895.63,0.0001452,2]
[353864180,1740100250506,-500.0,0.0001452,2]
[353864181,1740100250515,-1075.67,0.0001452,2]
[353864182,1740100250525,-1153.78,0.0001452,2]
[353864183,1740100250535,-2542.69,0.0001452,2]
[353864184,1740100250545,-5017.26,0.0001452,2]